Cogmind - Beta 16.1 @@@ ROGUE MODE // 2026.04.29 @ 13:29:11 Player: the Result: Destroyed by EK-DBU(R) with Subdweller Laser Performance ------------- Evolutions (0) 0 Regions Visited (2) 400 Robots Destroyed (22) 110 Value Destroyed (499) 499 Prototype IDs (0) 0 Alien Tech Used (0) 0 Bonus (0) 0 TOTAL SCORE: 1009 Bonus ------- None Cogmind --------- Core Integrity 0/250 Matter 295/300 Energy 195/200 System Corruption 0% Temperature Cool (6) Movement Treading (160) Location -10/Subcaves Parts ------- > --- POWER (1) -------- Subdweller Power Source > --- PROPULSION (2) --- Light Treads Light Treads > --- UTILITY (2) ------ (None) > --- WEAPON (2) ------- Subdweller Beam Cannon Makeshift Sword > --- INVENTORY (5) ---- Light Treads Makeshift Hacking Suite Riot Gun Subdweller Laser Subdweller Machine Gun Peak State ------------ > --- POWER ------------ Ion Engine > --- PROPULSION ------- Light Treads Light Treads > --- UTILITY ---------- Seismic Detector Propulsion Shielding > --- WEAPON ----------- Subdweller Beam Cannon Makeshift Sword > --- INVENTORY -------- Light Treads Makeshift Hacking Suite Makeshift Laser Subdweller Machine Gun Light Cannon [Rating: 12] Favorites ----------- Power Ion Engine Engine Ion Engine Propulsion Light Treads Treads Light Treads Utility Seismic Detector Device Seismic Detector Protection Propulsion Shielding Weapon Subdweller Beam Cannon Energy Gun Subdweller Laser Energy Cannon Subdweller Beam Cannon Ballistic Gun Assault Rifle Ballistic Cannon Light Cannon Special Weapon Mining Laser Slashing Weapon Makeshift Sword Build | -11 -10 -10 ------- Run | Yrd Mat Sub Slots Evolved . | . . . Power . | . . . Propulsion . | . . . Utility . | . . . Weapon . | . . . Parts Attached 24 | 6 7 11 Power 4 | 1 1 2 Engine 4 | 1 1 2 Core . | . . . Reactor . | . . . Propulsion 5 | 2 1 2 Treads 5 | 2 1 2 Leg . | . . . Wheel . | . . . Hover . | . . . Flight . | . . . Utility 5 | 1 3 1 Device 3 | 1 2 . Storage . | . . . Processor . | . . . Hackware . | . . . Protection 2 | . 1 1 Artifact . | . . . Weapon 10 | 2 2 6 Energy Gun 1 | . . 1 Energy Cannon 1 | . . 1 Ballistic Gun 5 | 2 1 2 Ballistic Cannon 1 | . 1 . Launcher . | . . . Special Weapon 1 | . . 1 Impact Weapon . | . . . Slashing Weapon 1 | . . 1 Piercing Weapon . | . . . Special Melee Weapon . | . . . Unidentified Prototypes . | . . . Parts Lost 11 | . 2 9 Power 3 | . 1 2 Propulsion 2 | . . 2 Utility 4 | . 1 3 Weapon 2 | . . 2 Highest Loss Streak 6 | . 2 6 To Critical Strikes . | . . . Average Backups 4 | 1 4 4 Power . | . . . Propulsion . | . . 1 Utility 1 | . 1 1 Weapon 1 | . 1 1 Tool/Special . | . . . Unused Backups 6 | . 1 5 Power . | . . . Propulsion . | . . . Utility 1 | . . 1 Weapon 5 | . 1 4 Tool/Special . | . . . Average Slot Usage (%) 86 | . 87 85 Engine 12 | . 13 12 Treads 27 | . 28 27 Device 9 | . 13 6 Protection 7 | . 2 9 Energy Cannon 6 | . . 9 Ballistic Gun 11 | . 26 3 Ballistic Cannon 4 | . 1 6 Slashing Weapon 5 | . . 7 Peak Build Rating 12 | 6 7 12 Average Rating 8 | 4 6 9 On Entrance 4 | . 6 7 Avg Prop Armor Cover (%) . | . . . Naked Turns . | . . . Heaviest Build 28 | 7 12 28 Greatest Support 40 | 40 40 40 Greatest Overweight (x) . | . . . Average Overweight (x) . | . . . Largest Inventory Capacity 5 | 5 5 5 Average Capacity 5 | 5 5 5 Most Carried 5 | 4 5 5 Average Carried 4 | 1 4 4 Final Capacity 5 | 5 5 5 Final Carried 5 | 4 4 5 Class Distribution -------------------- 67% | Mutant 32% | Scavenger-Mutant Dominant Class ---------------- Mutant | -10/Materials Scavenger-Mutant | -10/Subcaves Resources | -11 -10 -10 ----------- Run | Yrd Mat Sub Matter Collected 795 | 153 175 467 Remotely . | . . . Salvage Created 576 | 177 221 178 Parts 46 | 13 22 11 Haulers Intercepted 1 | . 1 . Recyclers Shooed . | . . . Parts Field Recycled . | . . . Retrieved Matter . | . . . Parts Self-Destructed 17 | . . 17 Prevented . | . . . Parts Restored . | . . . Kills | -11 -10 -10 ------- Run | Yrd Mat Sub Combat Hostiles Destroyed 15 | . 8 7 Melee 3 | . . 3 Guns 8 | . 6 2 Cannons 4 | . 2 2 Classes Destroyed 7 | 3 3 1 Worker 1 | 1 . . Tunneler 4 | 4 . . Hauler 1 | . 1 . Recycler 1 | 1 . . Swarmer 5 | . 5 . Grunt 3 | . 3 . Subdweller 7 | . . 7 Best Kill Streak 6 | 6 3 2 Combat Bots Only 3 | . 3 2 Max Kills in Single Turn 1 | 1 1 1 Gunslinging . | . . . Exploded . | . . . Melee 1 | . . 1 Uniques/NPCs Destroyed . | . . . Combat | -11 -10 -10 -------- Run | Yrd Mat Sub Hostile Shots Fired 112 | . 26 86 Missed 30 | . 7 23 Hits 82 | . 19 63 Projectile 82 | . 19 63 Critical Strikes 1 | . . 1 Damage Taken 1704 | . 258 1446 Core 251 | . 32 219 Absorbed by Shields . | . . . Redirected to Shielding 54 | . 5 49 Core Remaining (%) 100 | 100 . . Volleys Fired 73 | 11 21 41 Largest 2 | 2 2 2 Hottest 140 | 40 50 140 Shots Fired 137 | 22 42 73 Gun 93 | 22 40 31 Cannon 40 | . 2 38 Launcher . | . . . Special 4 | . . 4 Kinetic 128 | 22 42 64 Thermal 9 | . . 9 Explosive . | . . . Electromagnetic . | . . . Robot Hit Streak 18 | 8 4 18 Robot Miss Streak 3 | 2 3 3 Penetration Max . | . . . Secondary Targets 2 | . 2 . Max Gunslinging Chain 1 | . 1 . Shots Hit Robots 101 | 13 26 62 Core Hits 35 | 9 15 11 Critical Kills . | . . . Critical Parts Destroyed . | . . . Critical Strikes 3 | . 1 2 Blast 3 | . 1 2 Melee Attacks 35 | . . 35 Impact . | . . . Slashing 35 | . . 35 Piercing . | . . . Sneak Attacks 1 | . . 1 Combat Hostiles 1 | . . 1 Follow-up Attacks . | . . . Damage Inflicted 1668 | 132 351 1185 Guns 683 | 132 248 303 Cannons 523 | . 41 482 Explosions 58 | . 58 . Melee 400 | . . 400 Ramming 4 | . 4 . Kinetic 1136 | 132 289 715 Thermal 70 | . . 70 Explosive 58 | . 58 . Electromagnetic . | . . . Impact . | . . . Slashing 400 | . . 400 Piercing . | . . . Highest Corruption . | . . . Average Corruption . | . . . Corruption Purged . | . . . Corruption Blocked . | . . . Overload Shots . | . . . Overflow Damage 49 | . 49 . Projectiles . | . . . Explosions 49 | . 49 . Melee . | . . . Knockbacks 5 | . . 5 Impact . | . . . Kinetic 5 | . . 5 Secondary . | . . . Self-Inflicted Damage 71 | . 71 . Shots 1 | . 1 . Rammed 3 | . 3 . Targets Rammed 3 | . 3 . Kicked . | . . . Crushed . | . . . Highest Temperature 6 | . 6 6 Average Temperature 5 | . 6 3 Received Heat Transfer 366 | . 72 294 Siege Activations . | . . . Martial Activations . | . . . Shielding Activations . | . . . Robots Disrupted . | . . . Combat Hostiles . | . . . Robots Corrupted . | . . . Combat Hostiles . | . . . Parts Fried . | . . . Impact Corruptions . | . . . Robots Melted . | . . . Combat Hostiles . | . . . Parts Melted . | . . . Heat Transferred 87 | . . 87 Parts Sabotaged . | . . . Parts Stolen . | . . . Parts Stripped . | . . . Power Chain Reactions . | . . . Alert | -11 -10 -10 ------- Run | Yrd Mat Sub Maximum Alert Level . | . . . Low Security (%) 100 | 100 100 . Level 1 . | . . . Level 2 . | . . . Level 3 . | . . . Level 4 . | . . . Level 5 . | . . . High Security . | . . . Max Security . | . . . Peak Influence 150 | 10 150 . Initial . | . . . Average 24 | 2 28 . Influence Increases 280 | 30 250 . Destroy 0b10 Robot/C 160 | . 160 . Destroy 0b10 Robot/NC 35 | 30 5 . Destroy Leader 22 | . 22 . Disable Machine 45 | . 45 . Destroy Structure 18 | . 18 . Influence Decreases 280 | 30 124 126 Entered New Map 62 | . . 62 Time Decay 198 | 30 104 64 Lost Part 20 | . 20 . Squads Dispatched 1 | . 1 . Investigation 1 | . 1 . Extermination . | . . . Reinforcement . | . . . Assault . | . . . Garrison . | . . . Intercept . | . . . Searches Triggered . | . . . Construction Impeded . | . . . Haulers Reinforced . | . . . Active Scanning Responses . | . . . Cargo Convoy Interrupts . | . . . Stealth | -11 -10 -10 --------- Run | Yrd Mat Sub Distress Signals 2 | . 2 . Communications Jammed . | . . . Distress Signals . | . . . Times Spotted 23 | . 12 11 Peak Tracking Total 3 | . 3 3 Tactical Retreats . | . . . Traps | -11 -10 -10 ------- Run | Yrd Mat Sub Traps Triggered 2 | . 1 1 Indirectly . | . . . Trap Hack Attempts . | . . . Triggered . | . . . Disarmed . | . . . Reprogrammed . | . . . Reused . | . . . Traps Extracted . | . . . Installed . | . . . Triggered . | . . . Machines | -11 -10 -10 ---------- Run | Yrd Mat Sub Machines Disabled 3 | . 3 . Max in Single Turn 2 | . 2 . Machines Repaired . | . . . Machines Dismantled . | . . . Machines Sabotaged . | . . . Overloaded Fab Kills . | . . . Hacking | -11 -10 -10 --------- Run | Yrd Mat Sub Machines Accessed 2 | . 1 1 Terminals 1 | . 1 . Fabricators . | . . . Repair Stations . | . . . Recycling Units . | . . . Scanalyzers . | . . . Garrison Access . | . . . Total Hacks 6 | . 2 4 Successful 5 | . 1 4 Failed 1 | . 1 . Catastrophic . | . . . Database Lockouts . | . . . Manual 2 | . 2 . Terminals 2 | . 2 . Fabricators . | . . . Repair Stations . | . . . Recycling Units . | . . . Scanalyzers . | . . . Garrison Access . | . . . Terminal Hacks 5 | . 1 4 Record 4 | . . 4 Robot Analysis 1 | . 1 . Fabricator Hacks . | . . . Repair Station Hacks . | . . . Recycling Unit Hacks . | . . . Scanalyzer . | . . . Garrison Access Hacks . | . . . Unauthorized Hacks . | . . . Terminals . | . . . Fabricators . | . . . Repair Stations . | . . . Recycling Units . | . . . Scanalyzers . | . . . Garrison Access . | . . . Data Cores Recovered . | . . . Used . | . . . Hacking Detections 1 | . 1 . Full Trace Events . | . . . Feedback Events . | . . . Feedback Blocked . | . . . Robot Schematics Acquired . | . . . Robots Built . | . . . Authchips . | . . . Time . | . . . Total Robot Build Rating . | . . . Part Schematics Acquired . | . . . Parts Built . | . . . Authchips . | . . . Time . | . . . Total Part Build Rating . | . . . Part Studies Acquired . | . . . Parts Repaired . | . . . Time . | . . . Parts Recycled . | . . . Recycled Matter . | . . . Retrieved Matter . | . . . Retrieved Components . | . . . Parts Scanalyzed . | . . . Part Schematics Acquired . | . . . Parts Damaged . | . . . Bothacking | -11 -10 -10 ------------ Run | Yrd Mat Sub Used RIF Installer . | . . . Robots Hacked . | . . . Non-combat . | . . . Combat . | . . . Robot Hacks Applied . | . . . Relay Couplers Released . | . . . Fabnet Peak Effective % . | . . . Robots Rewired . | . . . Allies Hacked . | . . . Hacks Repelled . | . . . Allies | -11 -10 -10 -------- Run | Yrd Mat Sub Total Allies . | . . . Largest Group . | . . . Highest-Rated Group . | . . . Highest-Rated Ally . | . . . Total Orders . | . . . Ally Attacks . | . . . Total Damage . | . . . Kills . | . . . Allies Corrupted . | . . . Allies Melted . | . . . Intel | -11 -10 -10 ------- Run | Yrd Mat Sub Active Infowar (turns) 1680 | 59 845 776 Seismic 1680 | 59 845 776 Robot Analysis Total 1 | . 1 . Derelict Logs Recovered 2 | . . 2 Drone Launches . | . . . Drone Recoveries . | . . . Exploration | -11 -10 -10 ------------- Run | Yrd Mat Sub Turns Passed 2658 | 147 871 1640 Spaces Moved 1185 | 66 257 862 Core 1 | 1 . . Treads 1184 | 65 257 862 Legs . | . . . Wheels . | . . . Hover . | . . . Flight . | . . . Fastest Speed 50 | 50 160 160 Average Speed 159 | 158 160 160 Slowest Speed 160 | 160 160 160 Overloaded Moves . | . . . Propulsion Burnouts . | . . . Robots Hopped . | . . . Potential Cave-ins . | . . . Cave-ins Triggered . | . . . Exploration Rate (%) 27 | 4 32 45 Regions Visited 2 Branch Regions 1 Pre-discovered Areas 2 | . . 2 Known Exits Taken . | . . . Unknown Exits Taken 2 | 1 1 . Scrap Searched 5 | . . 5 Spaces Dug 5 | . . 5 Terrain Destroyed 34 | . 28 6 Melee 5 | . . 5 Projectile 1 | . . 1 AOE 28 | . 28 . Terrain Rammed . | . . . Walls Destroyed . | . . . Machines Disabled . | . . . Actions | -11 -10 -10 --------- Run | Yrd Mat Sub Total 1770 | 86 677 1007 Wait 416 | . 381 35 Move 1183 | 65 256 862 Hop . | . . . Pick Up 16 | 4 4 8 Fast Attach 12 | 6 1 5 Attach 7 | . 3 4 Detach 1 | . . 1 Swap 11 | . 4 7 Drop 11 | . 4 7 Fire 73 | 11 21 41 Melee 35 | . . 35 Ram . | . . . Kick . | . . . Crush 3 | . 3 . Escape Stasis . | . . . Rewire . | . . . Trap . | . . . Miscellaneous 2 | . . 2 Route ------- -11/Scrapyard -10/Materials (discovered 2 exits: [*Mat] / *Sub) -10/Subcaves (discovered 1 exit: [*Scr]) History --------- Turn | Location | Event 15 | -11/Scrapyard | Discovered new exit (range 14) 148 | -11/Scrapyard | Entered Materials 149 | -10/Materials | Met a group of wandering Federalists 301 | -10/Materials | Build established: Mutant 878 | -10/Materials | Discovered new exit (range 13) 1015 | -10/Materials | Discovered new exit (range 3) 1019 | -10/Materials | Entered Subcaves 1020 | -10/Subcaves | Continued accompanying wandering Federalists (5) 1020 | -10/Subcaves | Approached by a straggling Scientist 1021 | -10/Subcaves | Ambushed by Subdwellers from Twisted Machinery 1230 | -10/Subcaves | Learned Materials emergency access door positions 1314 | -10/Subcaves | Learned location of Storage (-7) 1490 | -10/Subcaves | Disturbed a concealed Subdweller 1527 | -10/Subcaves | Core integrity fell below 50% 1585 | -10/Subcaves | Lost 6 parts (1p2n1u2w) 2024 | -10/Subcaves | Build established: Scavenger-Mutant 2249 | -10/Subcaves | Visited Clippyterm 2253 | -10/Subcaves | Learned location of Section 7 (-2) 2253 | -10/Subcaves | Learned Factory fabricator intel 2510 | -10/Subcaves | Core integrity fell below 20% 2659 | -10/Subcaves | Destroyed by EK-DBU(R) with Subdweller Laser Last Messages --------------- 02511_ LG-KS8(R) destroyed. 02513_ Acquired 37 matter. 02539_ Searching scrap... 02539_ Found Sub. Machine Gun. 02539_ Found 47 Matter. 02540_ Acquired 47 matter. 02544_ SP-V2P(R): "WEHOME!" 02544_ Ion Engine destroyed. I2-E5H(c): "I think it's somewhere southeast of here" 02564_ Seismic Detector destroyed. 02571_ SP-V2P(R) destroyed. 02576_ 5T-0DC(R) destroyed. 02578_ Acquired 16 matter. I2-E5H(c): "I think it's somewhere southeast of here" 02613_ Acquired Sub. Power Source. I2-E5H(c): "I think it's somewhere southeast of here" 02657_ Propulsion Shielding destroyed. Map ----- +----------------------------------------------------+ | ?????????????????????????????????????????????????? | | ?????????????????????????????????????????????????? | | ?????????????????????????????????????????????????? | | ?????????????????????????????????????????????????? | | ?????????????????????????????????????????????????? | | ?????????????????????????????????????????????????? | | ?????????????????????????????????????????????????? | | ?????????????????????????????????????????????????? | | ?????????????????????????????????????????????????? | | ?????????????????????????????????????????????????? | | ?????????????????????????????????????????????????? | | ?????????????????????????????????????????????????? | | ?????????????????????????????????????????????????? | | ?????????????????????????????????????????????????? | | ?????????????????????????????????????????????????? | | ?????????????????????????????????????????????????? | | ?????????????????????????????????????????????????? | | ??????????????###????????????????????????????????? | | ????????????### #????????????????????????????????? | | ?????????#### [##????????????????????????????????? | | ?????????# # ##?????????????????????????????????? | | ?????????## #######????????????????????????????? | | ??????????# # #???###??????????????????????? | | ?????????##&!# #??## ##?????????????????????? | | ?????????#%&## #?## R####"?????????????????? | | ?????????#&% ## ### @ R""""?????????????????? | | ?????????#"! ### " &""""?????????????????? | | ?????????# """### c "" " "??????????????? | | ?????????#="####""" """"" "" "?????????????? | | ???????#### &#?#""""##" "" "" ??????????????? | | ??????##""!* ## ####"""" ## ??????????????? | | ??????# ## " ##??##""" #?????????????????? | | ??????#"" ## "" ##??#?##"" #?????????????????? | | ??????#"" ###"""### ??? ? #?????????????????? | | ??????##" ## """ ????????? #?????????????????? | | ????##?#" ### "" "?????????? #?????????????????? | | ????# ##" # #?????????????#?????????????????? | | ????# "" """####????????????????????????????? | | ????# " ##"#????????????????????????????? | | ???# "" ###"" "####?????????????????????????? | | ???# ### #?####" ##????????????????????????? | | ???###??## #???## #????????????????????????? | | ?????????# #???## """#????????????????????????? | | ????????? ???# " "##???????????????????????? | | ???????? ?## "" ##??????????????????????? | | ???????? ?## #??????????????????????? | | ??##??? ##?## ##?????????????????????? | | ??"##? ##???# ##????????????????????? | | ??& #? #????# ####?????????????????? | | ??" ## ????## ##????????????????? | +----------------------------------------------------+ Best States ------------- Heat Dissipation 25 Energy Generation 10 Energy Capacity 250 Matter Stores 300 Matter Capacity 300 Sight Range 16 Terrain Scan Density 10 Armor Coverage 800 Propulsion Shielding 33 Evasion (%) 40 Recoil Reduction 2 Item Schematics ----------------- None Robot Schematics ------------------ None Fabricated ------------ Nothing Repaired ---------- Nothing Studied --------- None Alien Tech Used ----------------- None Achievements -------------- None Challenges ------------ None Game ------ Seed AuthchipSeismicCharge Manual? 0 Play Time 00:14:54 Cumulative 720.0 hours Start 2026.04.29 @ 11:54:06 End 2026.04.29 @ 13:29:11 Sessions 1 Manual Loads 0 Difficulty Rogue Special Mode None Game No. 400 Rogue 400 Adventurer 0 Explorer 0 Win Type - Total 32 Types 15/2/6/2/1/1/1/2/1/1 Lore% 94 Gallery% 89 Achievement% 80 Wizard Run 0 Options --------- Layout 1 ASCII 0 Keyboard 0 Movement Numpad Keybinds 0 Fullscreen 2 Font 24/Smallcaps Map View 50x40 Zoom Use 0% Tactical HUD 1 Map Filters NONE Filters NONE Steam 1 RUN: 6f364073-d18c-4428-b6e0-6e089cb67e97